Cogmind - Beta 16 @@@ ROGUE MODE // 2025.11.06 @ 11:08:05 Player: Rocko1345 Result: Destroyed by T9-JPK(R) with Subdweller Beam Cannon Performance ------------- Evolutions (0) 0 Regions Visited (2) 400 Robots Destroyed (8) 40 Value Destroyed (117) 117 Prototype IDs (4) 80 Alien Tech Used (0) 0 Bonus (0) 0 TOTAL SCORE: 637 Bonus ------- None Cogmind --------- Core Integrity 0/250 Matter 251/300 Energy 40/100 System Corruption 0% Temperature Cool (68) Movement Core (700) Ox13 Location -10/Subcaves Parts ------- > --- POWER (1) -------- (None) > --- PROPULSION (2) --- (None) > --- UTILITY (2) ------ High-capacity Storage Unit > --- WEAPON (2) ------- Light Assault Rifle > --- INVENTORY (20) --- Terrain Scanner Mace Mace Peak State ------------ > --- POWER ------------ Subdweller Power Source > --- PROPULSION ------- Aluminum Leg Aluminum Leg > --- UTILITY ---------- High-capacity Storage Unit Structural Scanner > --- WEAPON ----------- EM Shotgun EM Shotgun > --- INVENTORY -------- Terrain Scanner Heavy EM Pulse Gun Heavy EM Pulse Gun Light Assault Rifle Mace Mace [Rating: 11] Favorites ----------- Power Ion Engine Engine Ion Engine Propulsion Aluminum Leg Leg Aluminum Leg Utility Structural Scanner Device Structural Scanner Storage High-capacity Storage Unit Weapon Light Assault Rifle Energy Gun EM Pulse Gun Ballistic Gun Light Assault Rifle Build | -11 -10 -10 ------- Run | Yrd Mat Sub Slots Evolved . | . . . Power . | . . . Propulsion . | . . . Utility . | . . . Weapon . | . . . Parts Attached 15 | 6 3 6 Power 2 | 1 . 1 Engine 2 | 1 . 1 Core . | . . . Reactor . | . . . Propulsion 2 | 2 . . Treads . | . . . Leg 2 | 2 . . Wheel . | . . . Hover . | . . . Flight . | . . . Utility 3 | 1 2 . Device 1 | . 1 . Storage 2 | 1 1 . Processor . | . . . Hackware . | . . . Protection . | . . . Artifact . | . . . Weapon 8 | 2 1 5 Energy Gun 5 | 1 . 4 Energy Cannon . | . . . Ballistic Gun 3 | 1 1 1 Ballistic Cannon . | . . . Launcher . | . . . Special Weapon . | . . . Impact Weapon . | . . . Slashing Weapon . | . . . Piercing Weapon . | . . . Special Melee Weapon . | . . . Unidentified Prototypes . | . . . Parts Lost 12 | . 1 11 Power 2 | . . 2 Propulsion 2 | . . 2 Utility 1 | . . 1 Weapon 7 | . 1 6 Highest Loss Streak 8 | . 1 8 To Critical Strikes 1 | . . 1 Average Backups 3 | . 2 7 Power . | . . . Propulsion . | . . . Utility . | . . 1 Weapon 3 | . 2 6 Tool/Special . | . . . Unused Backups 3 | . . 3 Power . | . . . Propulsion . | . . . Utility 1 | . . 1 Weapon 2 | . . 2 Tool/Special . | . . . Average Slot Usage (%) 95 | . 98 89 Engine 13 | . 13 11 Leg 27 | . 28 26 Device 13 | . 13 13 Storage 14 | . 14 14 Energy Gun 4 | . 6 1 Ballistic Gun 21 | . 21 21 Peak Build Rating 11 | 6 8 11 Average Rating 7 | 4 7 7 On Entrance 4 | . 6 8 Avg Prop Armor Cover (%) . | . . . Naked Turns . | . . . Heaviest Build 52 | 13 49 52 Greatest Support 20 | 20 20 20 Greatest Overweight (x) 5 | . 2 5 Average Overweight (x) 1 | . 1 2 Largest Inventory Capacity 20 | 8 20 20 Average Capacity 16 | 6 16 20 Most Carried 8 | . 8 8 Average Carried 3 | . 2 7 Final Capacity 20 | 8 20 20 Final Carried 8 | . 8 3 Class Distribution -------------------- 100% | Mutant Dominant Class ---------------- Mutant | -10/Materials Mutant | -10/Subcaves Resources | -11 -10 -10 ----------- Run | Yrd Mat Sub Matter Collected 344 | 200 73 71 Remotely . | . . . Salvage Created 166 | . 66 100 Parts 12 | . 6 6 Haulers Intercepted . | . . . Recyclers Shooed . | . . . Parts Field Recycled . | . . . Retrieved Matter . | . . . Parts Self-Destructed 3 | . . 3 Prevented . | . . . Parts Restored . | . . . Kills | -11 -10 -10 ------- Run | Yrd Mat Sub Combat Hostiles Destroyed 6 | . 2 4 Guns 6 | . 2 4 Classes Destroyed 5 | . 3 2 Worker 1 | . 1 . Watcher 1 | . 1 . Swarmer 5 | . 2 3 Artisan 1 | . . 1 Subdweller 1 | . . 1 Best Kill Streak 3 | . 3 3 Combat Bots Only 3 | . 2 3 Max Kills in Single Turn 1 | . 1 1 Gunslinging . | . . . Exploded . | . . . Melee . | . . . Uniques/NPCs Destroyed . | . . . Combat | -11 -10 -10 -------- Run | Yrd Mat Sub Hostile Shots Fired 99 | . 24 75 Missed 29 | . 6 23 Hits 70 | . 18 52 Projectile 70 | . 18 52 Critical Strikes 3 | . 1 2 Damage Taken 1045 | . 148 897 Core 275 | . 19 256 Absorbed by Shields . | . . . Core Remaining (%) 100 | 100 . . Volleys Fired 45 | . 16 29 Largest 2 | . 2 2 Hottest 90 | . 60 90 Shots Fired 78 | . 29 49 Gun 78 | . 29 49 Cannon . | . . . Launcher . | . . . Special . | . . . Kinetic 63 | . 21 42 Thermal . | . . . Explosive . | . . . Electromagnetic 15 | . 8 7 Robot Hit Streak 10 | . 6 10 Robot Miss Streak 10 | . 3 10 Penetration Max . | . . . Secondary Targets . | . . . Shots Hit Robots 46 | . 18 28 Core Hits 18 | . 7 11 Critical Kills . | . . . Critical Parts Destroyed . | . . . Critical Strikes . | . . . Melee Attacks . | . . . Impact . | . . . Slashing . | . . . Piercing . | . . . Sneak Attacks . | . . . Combat Hostiles . | . . . Follow-up Attacks . | . . . Damage Inflicted 432 | . 190 242 Guns 432 | . 190 242 Cannons . | . . . Explosions . | . . . Melee . | . . . Ramming . | . . . Kinetic 305 | . 105 200 Thermal . | . . . Explosive . | . . . Electromagnetic 127 | . 85 42 Impact . | . . . Slashing . | . . . Piercing . | . . . Highest Corruption . | . . . Average Corruption . | . . . Corruption Purged . | . . . Corruption Blocked . | . . . Overload Shots . | . . . Overflow Damage . | . . . Projectiles . | . . . Explosions . | . . . Melee . | . . . Knockbacks . | . . . Impact . | . . . Kinetic . | . . . Secondary . | . . . Self-Inflicted Damage . | . . . Shots . | . . . Rammed . | . . . Targets Rammed . | . . . Kicked . | . . . Crushed . | . . . Highest Temperature 224 | . 40 224 Average Temperature 47 | . 24 141 Received Heat Transfer 425 | . . 425 Siege Activations . | . . . Martial Activations . | . . . Shielding Activations . | . . . Robots Disrupted . | . . . Combat Hostiles . | . . . Robots Corrupted . | . . . Combat Hostiles . | . . . Parts Fried 1 | . 1 . Impact Corruptions . | . . . Robots Melted . | . . . Combat Hostiles . | . . . Parts Melted 1 | . . 1 Heat Transferred . | . . . Parts Sabotaged . | . . . Parts Stolen . | . . . Parts Stripped . | . . . Power Chain Reactions . | . . . Alert | -11 -10 -10 ------- Run | Yrd Mat Sub Maximum Alert Level . | . . . Low Security (%) 100 | 100 100 . Level 1 . | . . . Level 2 . | . . . Level 3 . | . . . Level 4 . | . . . Level 5 . | . . . High Security . | . . . Max Security . | . . . Peak Influence 50 | . 50 . Initial . | . . . Average 4 | . 4 . Influence Increases 161 | . 91 70 Destroy 0b10 Robot/C 100 | . 40 60 Destroy 0b10 Robot/NC 10 | . 10 . Destroy Leader 22 | . 12 10 Successful Hack 14 | . 14 . Disable Machine 15 | . 15 . Influence Decreases 161 | . 91 70 Time Decay 121 | . 81 40 Lost Part 40 | . 10 30 Squads Dispatched . | . . . Investigation . | . . . Extermination . | . . . Reinforcement . | . . . Assault . | . . . Garrison . | . . . Intercept . | . . . Searches Triggered . | . . . Construction Impeded . | . . . Haulers Reinforced . | . . . Active Scanning Responses . | . . . Cargo Convoy Interrupts . | . . . Stealth | -11 -10 -10 --------- Run | Yrd Mat Sub Distress Signals . | . . . Communications Jammed . | . . . Distress Signals . | . . . Times Spotted 13 | . 7 6 Peak Tracking Total 3 | . 3 3 Tactical Retreats . | . . . Traps | -11 -10 -10 ------- Run | Yrd Mat Sub Traps Triggered 1 | . 1 . Indirectly . | . . . Trap Hack Attempts . | . . . Triggered . | . . . Disarmed . | . . . Reprogrammed . | . . . Reused . | . . . Traps Extracted . | . . . Installed . | . . . Triggered . | . . . Machines | -11 -10 -10 ---------- Run | Yrd Mat Sub Machines Disabled 1 | . 1 . Max in Single Turn 1 | . 1 . Machines Repaired . | . . . Machines Dismantled . | . . . Machines Sabotaged . | . . . Overloaded Fab Kills . | . . . Hacking | -11 -10 -10 --------- Run | Yrd Mat Sub Machines Accessed 4 | . 4 . Terminals 4 | . 4 . Fabricators . | . . . Repair Stations . | . . . Recycling Units . | . . . Scanalyzers . | . . . Garrison Access . | . . . Total Hacks 10 | . 10 . Successful 6 | . 6 . Failed 4 | . 4 . Catastrophic . | . . . Database Lockouts . | . . . Manual 3 | . 3 . Terminals 10 | . 10 . Fabricators . | . . . Repair Stations . | . . . Recycling Units . | . . . Scanalyzers . | . . . Garrison Access . | . . . Terminal Hacks 4 | . 4 . Robot Analysis 1 | . 1 . Prototype ID Bank 2 | . 2 . Locate Traps 1 | . 1 . Fabricator Hacks . | . . . Repair Station Hacks . | . . . Recycling Unit Hacks . | . . . Scanalyzer . | . . . Garrison Access Hacks . | . . . Unauthorized Hacks 2 | . 2 . Terminals 2 | . 2 . Botnet 2 | . 2 . Fabricators . | . . . Repair Stations . | . . . Recycling Units . | . . . Scanalyzers . | . . . Garrison Access . | . . . Data Cores Recovered . | . . . Used . | . . . Hacking Detections 3 | . 3 . Full Trace Events 1 | . 1 . Feedback Events . | . . . Feedback Blocked . | . . . Robot Schematics Acquired . | . . . Robots Built . | . . . Authchips . | . . . Time . | . . . Total Robot Build Rating . | . . . Part Schematics Acquired . | . . . Parts Built . | . . . Authchips . | . . . Time . | . . . Total Part Build Rating . | . . . Part Studies Acquired . | . . . Parts Repaired . | . . . Time . | . . . Parts Recycled . | . . . Recycled Matter . | . . . Retrieved Matter . | . . . Retrieved Components . | . . . Parts Scanalyzed . | . . . Part Schematics Acquired . | . . . Parts Damaged . | . . . Bothacking | -11 -10 -10 ------------ Run | Yrd Mat Sub Used RIF Installer . | . . . Robots Hacked . | . . . Non-combat . | . . . Combat . | . . . Robot Hacks Applied . | . . . Relay Couplers Released . | . . . Fabnet Peak Effective % . | . . . Robots Rewired . | . . . Allies Hacked . | . . . Hacks Repelled . | . . . Allies | -11 -10 -10 -------- Run | Yrd Mat Sub Total Allies . | . . . Largest Group . | . . . Highest-Rated Group . | . . . Highest-Rated Ally . | . . . Total Orders . | . . . Ally Attacks . | . . . Total Damage . | . . . Kills . | . . . Allies Corrupted . | . . . Allies Melted . | . . . Intel | -11 -10 -10 ------- Run | Yrd Mat Sub Active Infowar (turns) 1008 | . 677 331 Structural 1008 | . 677 331 Robot Analysis Total 1 | . 1 . Derelict Logs Recovered . | . . . Drone Launches . | . . . Drone Recoveries . | . . . Exploration | -11 -10 -10 ------------- Run | Yrd Mat Sub Turns Passed 1117 | 68 707 342 Spaces Moved 495 | 54 340 101 Core 7 | 7 . . Treads . | . . . Legs 488 | 47 340 101 Wheels . | . . . Hover . | . . . Flight . | . . . Fastest Speed 50 | 50 120 260 Average Speed 196 | 110 191 262 Slowest Speed 470 | 120 260 470 Overloaded Moves . | . . . Propulsion Burnouts . | . . . Robots Hopped . | . . . Potential Cave-ins . | . . . Cave-ins Triggered . | . . . Exploration Rate (%) 23 | 5 57 9 Regions Visited 2 Branch Regions 1 Pre-discovered Areas . | . . . Known Exits Taken . | . . . Unknown Exits Taken 2 | 1 1 . Scrap Searched . | . . . Spaces Dug . | . . . Terrain Destroyed . | . . . Melee . | . . . Projectile . | . . . AOE . | . . . Terrain Rammed . | . . . Walls Destroyed . | . . . Machines Disabled . | . . . Actions | -11 -10 -10 --------- Run | Yrd Mat Sub Total 567 | 59 371 137 Wait 1 | . 1 . Move 493 | 53 339 101 Hop . | . . . Pick Up 8 | . 8 . Fast Attach 12 | 6 5 1 Attach 5 | . . 5 Detach . | . . . Swap 2 | . 1 1 Drop 1 | . 1 . Fire 45 | . 16 29 Melee . | . . . Ram . | . . . Kick . | . . . Crush . | . . . Escape Stasis . | . . . Rewire . | . . . Trap . | . . . Miscellaneous . | . . . Route ------- -11/Scrapyard -10/Materials -10/Subcaves (discovered 1 exit: [Rec]) History --------- Turn | Location | Event 9 | -11/Scrapyard | Discovered new exit (range 13) 69 | -11/Scrapyard | Entered Materials 303 | -10/Materials | Build established: Mutant 406 | -10/Materials | Discovered new exit (range 15) 776 | -10/Materials | Entered Subcaves 967 | -10/Subcaves | Core integrity fell below 50% 993 | -10/Subcaves | Discovered new exit (range 16) 995 | -10/Subcaves | Lost 3 parts (1p2w) 1109 | -10/Subcaves | Core integrity fell below 20% 1118 | -10/Subcaves | Destroyed by T9-JPK(R) with Subdweller Beam Cannon Last Messages --------------- 00969_ Sub. Optics melted. 00969_ 67-RIF(R) destroyed. 00979_ Acquired Sub. Power Source. 00980_ Acquired 42 matter. 00981_ Subatomizers dissect the Wheel. 00993_ EXIT=FOUND 00996_ Subatomizers dissect the Wheel. 00999_ Acquired 20 matter. 01020_ Subatomizers dissect the Wheel. 01022_ Acquired 9 matter. 01045_ Subatomizers dissect the Wheel. 01098_ Critical hit (Destroy). 01098_ Aluminum Leg destroyed. 01104_ EM Shotgun destroyed. 01104_ Sub. Power Source destroyed. 01106_ Hvy. EM Pulse Gun destroyed. 01107_ Structural Scanner destroyed. 01109_ EM Shotgun destroyed. 01112_ Hvy. EM Pulse Gun destroyed. 01112_ Critical hit (Meltdown: +260). Map ----- +----------------------------------------------------+ | ?????????????????????????????????????????????????? | | ?????????????############????????????????????????? | | ?????????#################???????????????????????? | | ############### " "####??????????????????????? | | ########### " " ## ??????????????????????? | | #### # # " " ????????????????????? | | """""""""??????????????????????? | | ##"""###?????????????????????????? | | # #### ### ###?????????????????????????? | | ############ ## ###??????????????????????????? | | ############ ####### ##????????????????????? | | ??????????## "#########""???????????????????? | | ??????????## "######"""""""#????????????????? | | ?????????### ## """ ##????????????????? | | ?????????### #####"""" ##????????????????? | | ?????????## ##### """ ##?????????????????? | | ?????????## #### "" " ##?????????????????? | | ?????????## ## &"" "" #####"?????????????? | | ?????????## "" " #### ""????????????? | | ?????????## "" "" " ""????????????? | | ?????????## ### "" " ""#"?????????????? | | ?????????## #### ### "" ####?????????????? | | ?????????## #### #### RR ""###??????????????? | | ?????????## #### % ### " ## ?????????????? | | ????????### ### ##; ""##"?????????????? | | ???????#### % ###@ """""?????????????? | | ??????#### ## ##"#"?????????????? | | ??????### #####?????????????? | | ??????## ## = "#####?????????????? | | ??????## ###### %= ""##????????????????? | | ??????############# ##""""" #??????????????? | | ??????<#####??##### #####""" ##??????????????? | | ????????????????? ########## ??????????????? | | ????????????### ??##### ??????????????? | | ????????????## ?????????????????????? | | ???????????? ????????????????????? | | ?????????? ## ##?????????????????? | | ?????????? # ## #### ##?????????????????? | | ??????????#### ######## ##?????????????????? | | ?????????? ##### ######??? ##?????????????????? | | ????????????##### ????????? #?????????????????? | | ??????????????### ?????????? ????????????????????? | | ???????????????# ???????????????????????????????? | | ?????????????????????????????????????????????????? | | ?????????????????????????????????????????????????? | | ?????????????????????????????????????????????????? | | ?????????????????????????????????????????????????? | | ?????????????????????????????????????????????????? | | ?????????????????????????????????????????????????? | | ?????????????????????????????????????????????????? | +----------------------------------------------------+ Best States ------------- Heat Dissipation 25 Energy Generation 15 Energy Capacity 250 Matter Stores 271 Matter Capacity 300 Sight Range 16 Terrain Scan Density 10 Evasion (%) 55 Item Schematics ----------------- None Robot Schematics ------------------ None Fabricated ------------ Nothing Repaired ---------- Nothing Studied --------- None Alien Tech Used ----------------- None Achievements -------------- None Challenges ------------ None Game ------ Seed TransmissionProjectionLegs Manual? 0 Play Time 00:07:18 Cumulative 237.1 hours Start 2025.11.06 @ 11:02:16 End 2025.11.06 @ 11:08:05 Sessions 1 Manual Loads 0 Difficulty Rogue Special Mode None Game No. 288 Rogue 114 Adventurer 174 Explorer 0 Win Type - Total 1 Types 1/0/0/0/0/0/0/0/0/0 Lore% 66 Gallery% 60 Achievement% 42 Wizard Run 0 Options --------- Layout 0 ASCII 0 Keyboard 1 Movement Numpad Keybinds 0 Fullscreen 1 Font 18/Terminus Map View 76x50 Zoom Use 0% Tactical HUD 1 Map Filters NONE Filters NONE Steam 1 RUN: 2fa483da-1858-4342-ad27-3990ed30d994